bitfinex/quotes_BTCUSD_20220304
["timestamp","ask_amount","ask_price","bid_price","bid_amount"]
[1646416479163,0.399,40863.0,40857.0,0.00022812]
[1646416479564,0.160252,40863.0,40857.0,0.00022812]
[1646416480168,0.160252,40863.0,40856.0,0.001]
[1646416480366,0.160252,40863.0,40858.0,0.00022812]
[1646416480610,0.061244,40862.0,40858.0,0.00022812]
[1646416480814,0.160252,40863.0,40858.0,0.00022812]
[1646416480815,0.049,40861.0,40858.0,0.00022812]
[1646416481014,0.049,40860.0,40858.0,0.00022812]
[1646416481211,0.110241,40859.0,40858.0,0.00022812]
[1646416481414,0.110241,40859.0,40856.0,0.001]
[1646416481613,0.110241,40859.0,40857.0,0.00022812]
[1646416482212,0.160241,40859.0,40857.0,0.00022812]
[1646416482511,0.160241,40859.0,40856.0,0.001]
[1646416482512,0.210241,40859.0,40856.0,0.001]
[1646416482910,0.210241,40859.0,40856.0,0.00122812]
[1646416483113,0.160241,40859.0,40856.0,0.00122812]
[1646416483912,0.160241,40859.0,40856.0,0.001]
[1646416484113,0.160241,40859.0,40857.0,0.25464367]
[1646416485765,0.15282086,40877.0,40858.0,0.3]
[1646416485965,0.15282086,40877.0,40859.0,0.3]
[1646416485966,0.049,40864.0,40859.0,0.3]
[1646416486165,0.10782464,40860.0,40857.0,0.25464367]
[1646416486366,0.06124,40862.0,40859.0,0.00021548]
[1646416486565,0.10782464,40860.0,40859.0,0.00021548]
[1646416486767,0.15682464,40860.0,40859.0,0.00021548]
[1646416486965,0.15682332,40860.0,40859.0,0.00021548]
[1646416487165,0.049,40860.0,40859.0,0.00021548]
[1646416487365,0.15682067,40860.0,40858.0,0.3]
[1646416487565,0.049,40860.0,40859.0,0.18253195]
[1646416487770,0.15681803,40860.0,40859.0,0.48253195]
[1646416488210,0.15681671,40860.0,40859.0,0.48253195]
[1646416488415,0.15681539,40860.0,40859.0,0.48253195]
[1646416489011,0.004,40865.0,40859.0,0.48253195]
[1646416489213,0.004,40865.0,40861.0,0.32050155]
[1646416489413,0.30793772,40867.0,40862.0,0.3]
[1646416490014,0.30793772,40867.0,40862.0,0.30021171]
[1646416490721,0.25893772,40867.0,40862.0,0.30021171]
[1646416491017,0.25893772,40867.0,40863.0,0.28861796]
[1646416491214,0.25893772,40867.0,40864.0,0.061217]
[1646416491415,0.25893772,40867.0,40865.0,0.3]
[1646416492066,0.25893772,40867.0,40866.0,0.15]
[1646416492264,0.25893772,40867.0,40866.0,0.45]
[1646416494266,0.25893772,40867.0,40866.0,0.3]
[1646416494666,0.25893772,40867.0,40866.0,0.45]
[1646416495064,0.25893772,40867.0,40866.0,0.3]
[1646416495710,0.25893772,40867.0,40866.0,0.45]
[1646416499384,0.25893772,40867.0,40864.0,0.00019804]
[1646416499583,0.30893772,40867.0,40864.0,0.3]
[1646416499779,0.30893772,40867.0,40864.0,0.30019804]
[1646416500781,0.30893772,40867.0,40864.0,0.3]
[1646416502280,0.05,40866.0,40864.0,0.3]
[1646416502881,0.05,40866.0,40863.0,0.00019924]
[1646416503115,0.05,40866.0,40861.0,0.3]
[1646416503315,0.30893772,40867.0,40862.0,0.00019924]
[1646416504426,0.30893772,40867.0,40860.0,0.15]
[1646416505013,0.30893772,40867.0,40863.0,0.21577284]
[1646416505217,0.30893772,40867.0,40863.0,0.54424644]
[1646416505415,0.25893772,40867.0,40866.0,0.15]
[1646416505616,0.25893772,40867.0,40866.0,0.5179]
[1646416507861,0.01701978,40882.0,40867.0,0.3679]
[1646416508060,0.95480455,40887.0,40868.0,0.199]
[1646416508061,0.01664131,40886.0,40868.0,0.199]
[1646416508259,0.01664131,40886.0,40871.0,0.15]
[1646416508460,0.06664131,40886.0,40883.0,0.15]
[1646416509263,0.05,40886.0,40883.0,0.15]
[1646416509460,0.05,40886.0,40883.0,0.39050122]
[1646416509660,0.05,40886.0,40878.0,0.15]
[1646416510065,0.05,40886.0,40877.0,0.15]
[1646416510260,0.05,40886.0,40881.0,0.15]
[1646416510261,0.01397104,40886.0,40881.0,0.15]
[1646416510530,0.01611954,40885.0,40881.0,0.15]
[1646416510729,0.01787949,40884.0,40881.0,0.15]
[1646416510928,0.01618941,40886.0,40881.0,0.15]
[1646416511327,0.01618941,40886.0,40879.0,0.2341277]
[1646416511728,0.01618941,40886.0,40881.0,0.15]
[1646416511929,0.1,40887.0,40881.0,0.15]
[1646416512130,0.002,40892.0,40881.0,0.15]
[1646416512629,0.01882234,40892.0,40885.0,0.18657508]
[1646416512829,0.002,40892.0,40885.0,0.18657508]
[1646416513328,0.01438396,40894.0,40885.0,0.18657508]
[1646416513528,0.061199,40892.0,40883.0,0.25555939]
[1646416513731,0.111199,40892.0,40887.0,0.2503566]
[1646416514262,0.111199,40892.0,40881.0,0.15]
[1646416514458,0.172402,40892.0,40881.0,0.145]
[1646416514664,0.172402,40892.0,40883.0,0.18057413]
[1646416515060,0.172402,40892.0,40881.0,0.145]
[1646416515263,0.172402,40892.0,40885.0,0.25506578]
[1646416515662,0.05,40893.0,40886.0,0.3799502]
[1646416515863,0.01379894,40895.0,40886.0,0.3799502]
[1646416516061,0.07579485,40897.0,40890.0,0.145]
[1646416516062,0.00079485,40897.0,40890.0,0.145]
[1646416516266,0.00079485,40897.0,40891.0,0.3]
[1646416516466,0.006,40898.0,40891.0,0.20368307]
[1646416516663,0.006,40898.0,40891.0,0.3]
[1646416516867,0.006,40898.0,40887.0,0.3]
[1646416517063,0.07475774,40895.0,40887.0,0.3]
[1646416517462,0.12475774,40895.0,40887.0,0.3]
[1646416517864,0.12682908,40895.0,40887.0,0.3]
[1646416518122,0.05,40895.0,40887.0,0.3]
[1646416518422,0.005,40896.0,40887.0,0.445]
[1646416518921,0.005,40896.0,40883.0,0.3]
[1646416519120,0.005,40896.0,40884.0,0.3]
[1646416519321,0.222393,40898.0,40891.0,0.145]
[1646416519523,0.061195,40895.0,40891.0,0.145]
[1646416519720,0.05,40898.0,40891.0,0.145]
[1646416519921,0.05,40897.0,40891.0,0.145]
[1646416520222,0.01495584,40899.0,40891.0,0.145]
[1646416521222,0.061196,40897.0,40887.0,0.145]
[1646416521422,0.061196,40897.0,40882.0,0.2617]
[1646416521622,0.01495584,40899.0,40882.0,0.2617]
[1646416521623,0.049,40896.0,40882.0,0.145]
[1646416521866,0.0244882,40892.0,40882.0,0.145]
[1646416522070,0.325,40894.0,40882.0,0.145]
[1646416522267,0.049,40893.0,40882.0,0.145]
[1646416522868,0.061211,40892.0,40882.0,0.145]
[1646416523069,0.061207,40889.0,40882.0,0.145]
[1646416523272,0.01352212,40888.0,40878.0,0.113]
[1646416523467,0.111207,40889.0,40878.0,0.113]
[1646416523468,0.1,40889.0,40878.0,0.113]
[1646416523868,0.01632316,40886.0,40878.0,0.113]
[1646416524068,0.3,40889.0,40878.0,0.113]
[1646416524269,0.01476277,40887.0,40878.0,0.113]
[1646416524469,0.01622195,40886.0,40878.0,0.113]
[1646416524673,0.099,40888.0,40878.0,0.113]
[1646416524872,0.07857402,40885.0,40878.0,0.113]
[1646416525070,0.07857402,40885.0,40877.0,0.2151]
[1646416525071,0.01507331,40884.0,40877.0,0.2151]
[1646416525274,0.06507331,40884.0,40875.0,0.145]
[1646416525514,0.06507331,40884.0,40880.0,0.25590833]
[1646416525714,0.06507331,40884.0,40874.0,0.3185]
[1646416525916,0.06395011,40884.0,40875.0,0.145]
[1646416526315,0.01395011,40884.0,40875.0,0.145]
[1646416526815,0.01395011,40884.0,40878.0,0.05]
[1646416527019,0.07516611,40884.0,40878.0,0.05]
[1646416527219,0.01493851,40883.0,40878.0,0.05]
[1646416527417,0.061217,40881.0,40878.0,0.05]
[1646416527617,0.14,40879.0,40878.0,0.05]
[1646416527918,0.1199711,40879.0,40878.0,0.05]
[1646416528119,0.1699711,40879.0,40878.0,0.05]
[1646416529260,0.15777314,40879.0,40878.0,0.05]
[1646416531860,0.15777182,40879.0,40878.0,0.05]
[1646416535624,0.05,40879.0,40878.0,0.05]
[1646416535826,0.099,40880.0,40878.0,0.05]
[1646416536026,0.049,40880.0,40878.0,0.05]
[1646416537667,0.14,40879.0,40878.0,0.05]
[1646416538067,0.19,40879.0,40878.0,0.05]
[1646416538267,0.19,40879.0,40878.0,0.0499222]
[1646416539274,0.05,40879.0,40878.0,0.0499222]
[1646416539670,0.061226,40880.0,40878.0,0.0499222]
[1646416540270,0.14,40879.0,40878.0,0.0499222]
[1646416540814,0.05,40879.0,40878.0,0.0499222]
[1646416541110,0.05,40880.0,40878.0,0.0499222]
[1646416541310,0.111217,40881.0,40878.0,0.0499222]
[1646416542114,0.05,40881.0,40878.0,0.0499222]
[1646416542411,0.20420655,40885.0,40878.0,0.0499222]
[1646416542412,0.005,40883.0,40878.0,0.0499222]
[1646416542613,0.005,40883.0,40880.0,0.24878184]
[1646416543211,0.005,40883.0,40878.0,0.34430578]
[1646416543412,0.061208,40891.0,40878.0,0.34430578]
[1646416543617,0.01651639,40889.0,40878.0,0.34430578]
[1646416543812,0.01460815,40888.0,40878.0,0.34430578]
[1646416544015,0.01759898,40887.0,40878.0,0.34430578]
[1646416544258,0.05,40890.0,40879.0,0.20808769]
[1646416544559,0.06121,40885.0,40879.0,0.20808769]
[1646416544960,0.06121,40885.0,40878.0,0.34430578]
[1646416545561,0.07453359,40885.0,40878.0,0.34430578]
[1646416545761,0.12453359,40885.0,40878.0,0.34430578]
[1646416545962,0.11121,40885.0,40878.0,0.64430578]
[1646416546164,0.11121,40885.0,40878.0,0.34430578]
[1646416546367,0.06121,40885.0,40878.0,0.34430578]
[1646416548323,0.06121,40885.0,40878.0,0.0499222]
[1646416550525,0.06121,40885.0,40884.0,0.145]
[1646416550725,0.14799655,40889.0,40884.0,0.72826779]
[1646416550923,0.005,40889.0,40884.0,0.78946379]
[1646416551123,0.005,40889.0,40886.0,0.19512653]
[1646416551324,0.005,40889.0,40888.0,0.145]
[1646416551524,0.45034157,40897.0,40888.0,0.445]
[1646416551773,0.00079453,40897.0,40888.0,0.445]
[1646416551973,0.00079453,40897.0,40892.0,0.26896587]
[1646416552576,0.01645631,40898.0,40892.0,0.26896587]
[1646416552776,0.45034157,40900.0,40893.0,0.3]
[1646416552983,0.46398535,40900.0,40893.0,0.3]
[1646416553178,0.017904,40899.0,40893.0,0.3]
[1646416553378,0.0168265,40898.0,40893.0,0.3]
[1646416553779,0.051,40901.0,40893.0,0.3]
[1646416553983,0.01456245,40900.0,40893.0,0.50348782]
[1646416554380,0.01466076,40899.0,40893.0,0.50348782]
[1646416554578,0.01530667,40898.0,40893.0,0.50348782]
[1646416554777,0.01370615,40898.0,40893.0,0.50348782]
[1646416554979,0.001,40901.0,40893.0,0.50348782]
[1646416555179,0.17338,40901.0,40893.0,0.3]
[1646416555378,0.67372157,40901.0,40893.0,0.3]
[1646416556016,0.061189,40899.0,40893.0,0.3]
[1646416556216,0.061189,40899.0,40896.0,0.21175342]
[1646416556416,0.11403391,40897.0,40896.0,0.21175342]
[1646416557217,0.11403391,40897.0,40893.0,0.3]
[1646416557418,0.061189,40899.0,40893.0,0.3]
[1646416558819,0.061189,40899.0,40889.0,0.3]
[1646416560165,0.183586,40899.0,40889.0,0.3]
[1646416560363,0.122396,40896.0,40889.0,0.3]
[1646416560564,0.12589241,40898.0,40889.0,0.3]
[1646416560867,0.05,40896.0,40889.0,0.3]
[1646416561063,0.06469441,40898.0,40889.0,0.3]
[1646416561266,0.05,40897.0,40892.0,0.20859735]
[1646416561463,0.05,40897.0,40889.0,0.48690193]
[1646416561666,0.01469441,40898.0,40889.0,0.48690193]
[1646416561864,0.17697942,40899.0,40889.0,0.48690193]
[1646416562264,0.161189,40899.0,40889.0,0.3]
[1646416562465,0.01563647,40898.0,40888.0,0.35798791]
[1646416562665,0.01563647,40898.0,40888.0,0.1144]
[1646416562864,0.01563647,40898.0,40886.0,0.445]
[1646416563320,0.13933392,40896.0,40886.0,0.445]
[1646416563526,0.01577025,40895.0,40888.0,0.21456479]
[1646416563721,0.01577025,40895.0,40887.0,0.3]
[1646416563722,0.061201,40893.0,40887.0,0.3]
[1646416563919,0.061201,40893.0,40886.0,0.145]
[1646416564920,0.061201,40893.0,40889.0,0.21575408]
[1646416565322,0.061201,40893.0,40886.0,0.145]
[1646416566124,0.061201,40893.0,40886.0,0.14490693]
[1646416566520,0.061201,40893.0,40887.0,0.3]
[1646416567370,0.061201,40893.0,40886.0,0.14490693]
[1646416567571,0.061201,40893.0,40887.0,0.3]
[1646416568174,0.061201,40893.0,40889.0,0.21814165]
[1646416568975,0.01577025,40895.0,40890.0,0.3]
[1646416569174,0.01577025,40895.0,40891.0,0.14490693]
[1646416569175,0.01337501,40895.0,40891.0,0.14490693]
[1646416569375,0.00579559,40898.0,40897.0,0.22200268]
[1646416569575,0.0152479,40898.0,40897.0,0.22200268]
[1646416569776,0.05,40899.0,40897.0,0.22200268]
[1646416569978,0.05179555,40901.0,40897.0,0.22200268]
[1646416570728,0.051,40901.0,40897.0,0.22200268]
[1646416573733,0.001,40901.0,40900.0,0.14490693]
[1646416573937,0.001,40901.0,40900.0,0.44490693]
[1646416574271,0.0022,40911.0,40908.0,0.02452]
[1646416574472,0.0022,40911.0,40910.0,0.16942693]
[1646416574669,0.0022,40911.0,40910.0,0.44490693]
[1646416575271,0.0022,40911.0,40902.0,0.42230847]
[1646416575471,0.0022,40911.0,40908.0,0.14490693]
[1646416576071,0.0022,40911.0,40909.0,0.55259192]
[1646416576270,0.0022,40911.0,40910.0,0.3]
[1646416577070,0.0022,40911.0,40909.0,0.25259192]
[1646416577472,0.0022,40911.0,40909.0,0.55259192]
[1646416577673,0.0022,40911.0,40909.0,0.25259192]
[1646416579133,0.0022,40911.0,40910.0,0.3]
[1646416579531,0.0022,40911.0,40910.0,0.44490693]
[1646416579930,0.0022,40911.0,40910.0,0.3]
[1646416580130,0.0022,40911.0,40907.0,0.3]
[1646416580731,0.12475167,40911.0,40907.0,0.44490693]
[1646416580930,0.12475167,40911.0,40906.0,0.26734545]
[1646416581133,0.12475167,40911.0,40906.0,0.001]
[1646416581134,0.17475167,40911.0,40906.0,0.001]
[1646416581331,0.05,40910.0,40906.0,0.001]
[1646416581532,0.049,40909.0,40899.0,0.3]
[1646416581767,0.061184,40907.0,40899.0,0.3]
[1646416581965,0.01344399,40906.0,40899.0,0.3]
[1646416582265,0.01344399,40906.0,40900.0,0.27997911]
[1646416582866,0.00241867,40911.0,40902.0,0.02445]
[1646416582867,0.0022,40911.0,40902.0,0.02445]
[1646416583065,0.00021866,40909.0,40902.0,0.3]
[1646416583264,0.00021866,40909.0,40908.0,0.36989478]
[1646416583465,0.00021866,40909.0,40908.0,0.66989478]
[1646416583666,0.00021866,40909.0,40908.0,0.88110684]
[1646416583865,0.00021866,40909.0,40908.0,0.9979557]
[1646416584168,0.00228206,40911.0,40908.0,0.9979557]
[1646416584766,0.00228206,40911.0,40910.0,0.16476098]
[1646416584966,0.00228206,40911.0,40910.0,0.3]
[1646416585166,0.0022,40911.0,40910.0,0.3]
[1646416586627,0.0018,40911.0,40910.0,0.3]
[1646416588629,0.00116203,40911.0,40910.0,0.3]
[1646416589029,0.00116203,40911.0,40908.0,0.53412615]
[1646416589275,0.00116203,40911.0,40906.0,0.001]
[1646416589276,0.171345,40910.0,40906.0,0.001]
[1646416589472,0.48248832,40910.0,40906.0,0.001]
[1646416589677,0.01666627,40908.0,40906.0,0.001]
[1646416589873,0.049,40907.0,40899.0,0.1143]
[1646416590172,0.061186,40905.0,40899.0,0.1143]
[1646416590371,0.122367,40903.0,40899.0,0.1143]
[1646416590573,0.122367,40903.0,40897.0,0.00022819]
[1646416590574,0.049,40902.0,40897.0,0.00022819]
[1646416591172,0.049,40902.0,40890.0,0.14490693]
[1646416591373,0.061189,40899.0,40897.0,0.00021976]
[1646416591578,0.049,40898.0,40897.0,0.00021976]
[1646416592377,0.049,40898.0,40894.0,0.29429307]
[1646416592577,0.049,40898.0,40895.0,0.00021977]
[1646416593622,0.049,40898.0,40890.0,0.14490693]
[1646416593623,0.110191,40898.0,40890.0,0.14490693]
[1646416593822,0.110191,40898.0,40894.0,0.00021977]
[1646416593823,0.0612,40895.0,40894.0,0.00021977]
[1646416594022,0.12506922,40895.0,40894.0,0.00021977]
[1646416594822,0.12506922,40895.0,40891.0,0.29761263]
[1646416595020,0.01303033,40894.0,40892.0,0.00021176]
[1646416595224,0.049,40893.0,40892.0,0.00021176]
[1646416596021,0.049,40893.0,40888.0,0.14490693]
[1646416596225,0.049,40893.0,40890.0,0.00021177]
[1646416597071,0.04872942,40893.0,40890.0,0.00021177]
[1646416597269,0.04872942,40893.0,40888.0,0.14490693]
[1646416597473,0.061196,40892.0,40889.0,0.1451187]
[1646416597669,0.049,40891.0,40889.0,0.1451187]
[1646416598368,0.01355853,40890.0,40889.0,0.14490693]
[1646416598569,0.06255853,40890.0,40889.0,0.14490693]
[1646416600370,0.0612,40889.0,40887.0,0.00021215]
[1646416600624,0.110208,40888.0,40887.0,0.00021215]
[1646416601020,0.110208,40888.0,40879.0,0.192]
[1646416601227,0.110208,40888.0,40880.0,0.30048049]
[1646416602222,0.110208,40888.0,40882.0,0.00022819]
[1646416602422,0.10776786,40884.0,40882.0,0.00022819]
[1646416602627,0.049,40884.0,40882.0,0.00022819]
[1646416603123,0.10776126,40883.0,40882.0,0.00022819]
[1646416603322,0.10776126,40883.0,40882.0,0.18519577]
[1646416603522,0.1077507,40883.0,40882.0,0.18519577]
[1646416603924,0.099,40889.0,40888.0,0.22121898]
[1646416604125,0.099,40889.0,40883.0,0.15765222]
[1646416604376,0.104,40889.0,40882.0,0.18519577]
[1646416604575,0.054,40889.0,40883.0,0.14490693]
[1646416604775,0.054,40889.0,40884.0,0.00022818]
[1646416605476,0.066199,40889.0,40888.0,0.31353578]
[1646416605676,0.061199,40889.0,40883.0,0.14490693]
[1646416605878,0.12649211,40889.0,40884.0,0.00022818]
[1646416606776,0.17649211,40889.0,40884.0,0.00022818]
[1646416606979,0.061208,40885.0,40880.0,0.26560693]
[1646416607177,0.061208,40885.0,40884.0,0.00021872]
[1646416607878,0.01528125,40888.0,40884.0,0.00021872]
[1646416608119,0.0161905,40887.0,40882.0,0.27612209]
[1646416608322,0.01676323,40886.0,40882.0,0.27634082]
[1646416608519,0.06474767,40888.0,40882.0,0.27634082]
[1646416608718,0.06474767,40888.0,40885.0,0.27581668]
[1646416610120,0.061203,40887.0,40885.0,0.27581668]
[1646416610621,0.061203,40887.0,40884.0,0.00021182]
[1646416610820,0.061209,40886.0,40884.0,0.00021182]
[1646416611020,0.122422,40885.0,40884.0,0.00021182]
[1646416611622,0.122422,40885.0,40874.0,0.37550693]
[1646416611873,0.122422,40885.0,40882.0,0.00021183]
[1646416611874,0.171422,40885.0,40882.0,0.00021183]
[1646416612875,0.171422,40885.0,40874.0,0.116]
[1646416613075,0.171422,40885.0,40881.0,0.00021183]
[1646416614073,0.05,40884.0,40874.0,0.116]
[1646416614273,0.05,40884.0,40881.0,0.00021233]
[1646416614274,0.12574467,40883.0,40881.0,0.00021233]
[1646416614477,0.35,40882.0,40881.0,0.00021233]
[1646416614676,0.399,40882.0,40881.0,0.00021233]
[1646416614874,0.539,40882.0,40881.0,0.00021233]
[1646416615077,0.5067903,40882.0,40881.0,0.00021233]
[1646416615276,0.5067903,40882.0,40867.0,0.1204]
[1646416615561,0.06123,40881.0,40879.0,0.00021234]
[1646416615756,0.410229,40880.0,40878.0,0.04513454]
[1646416615955,0.15566136,40879.0,40878.0,0.04513454]
[1646416616158,0.4567903,40879.0,40878.0,0.04513454]
[1646416618161,0.26450384,40879.0,40878.0,0.04513454]
[1646416618358,0.37229414,40879.0,40878.0,0.04513454]
[1646416618760,0.049,40879.0,40878.0,0.04513454]
[1646416618959,0.15678766,40879.0,40878.0,0.04513454]
[1646416619669,0.15678634,40879.0,40878.0,0.04513454]
[1646416619966,0.15678634,40879.0,40878.0,0.28747045]
[1646416620170,0.15678634,40879.0,40878.0,0.58292071]
[1646416620368,0.01903468,40882.0,40878.0,0.28747045]
[1646416620567,0.01903468,40882.0,40879.0,0.66309882]
[1646416620769,0.006,40885.0,40879.0,0.29519882]
[1646416621170,0.006,40885.0,40884.0,0.17892279]
[1646416621766,0.006,40885.0,40884.0,0.44685653]
[1646416621968,0.061196,40890.0,40885.0,0.27983605]
[1646416622468,0.061196,40890.0,40885.0,0.57592691]
[1646416622668,0.061196,40890.0,40885.0,0.63711968]
[1646416623117,0.004,40891.0,40885.0,0.63711968]
[1646416624017,0.01915518,40893.0,40885.0,0.63711968]
[1646416624217,0.01915518,40893.0,40891.0,0.16448073]
[1646416624417,0.01915518,40893.0,40892.0,0.24910805]
[1646416625516,0.01915518,40893.0,40888.0,0.18655221]
[1646416625921,0.08034818,40893.0,40888.0,0.18655221]
[1646416626320,0.08034818,40893.0,40887.0,0.14490693]
[1646416626321,0.01746993,40892.0,40887.0,0.14490693]
[1646416626775,0.07866793,40892.0,40885.0,0.1214]
[1646416627174,0.01746993,40892.0,40878.0,0.14513454]
[1646416627376,0.01622697,40891.0,40878.0,0.33436267]
[1646416627577,0.01359481,40890.0,40880.0,0.31573781]
[1646416627776,0.061205,40886.0,40880.0,0.31573781]
[1646416627975,0.07528486,40886.0,40880.0,0.31573781]
[1646416628579,0.122421,40885.0,40878.0,0.14513454]
[1646416628776,0.061211,40884.0,40878.0,0.04513454]
[1646416629179,0.06121,40883.0,40878.0,0.04513454]
[1646416629978,0.06121,40883.0,40879.0,0.23412215]
[1646416631517,0.06121,40883.0,40878.0,0.04513454]
[1646416631920,0.01728597,40881.0,40878.0,0.04513454]
[1646416632119,0.12429549,40880.0,40878.0,0.04513454]
[1646416632320,0.12934184,40880.0,40878.0,0.04513454]
[1646416632519,0.12934184,40880.0,40879.0,0.26431554]
[1646416632918,0.12934184,40880.0,40878.0,0.04513454]
[1646416633519,0.12934184,40880.0,40879.0,0.25843397]
[1646416633727,0.06812484,40880.0,40879.0,0.55843397]
[1646416633919,0.06812484,40880.0,40879.0,0.25843397]
[1646416633920,0.049,40880.0,40879.0,0.25843397]
[1646416634122,0.049,40880.0,40879.0,0.55843397]
[1646416634379,0.061208,40883.0,40879.0,0.81046804]
[1646416634779,0.01632678,40882.0,40879.0,0.81046804]
[1646416636183,0.01632678,40882.0,40879.0,1.01658197]
[1646416636385,0.03612816,40890.0,40879.0,1.01658197]
[1646416636582,0.008,40888.0,40879.0,1.01658197]
[1646416636881,0.008,40888.0,40883.0,0.14490693]
[1646416637081,0.008,40888.0,40884.0,0.3]
[1646416637285,0.008,40888.0,40884.0,0.361198]
[1646416637682,0.03612816,40890.0,40884.0,0.361198]
[1646416638127,0.03612816,40890.0,40885.0,0.27848463]
[1646416638428,0.03612816,40890.0,40888.0,0.14490693]
[1646416638627,0.03612816,40890.0,40889.0,0.3]
[1646416638828,0.14798066,40890.0,40889.0,0.3]
[1646416639132,0.01911029,40890.0,40889.0,0.3]
[1646416639329,0.004,40895.0,40890.0,0.3679]
[1646416639826,0.01953599,40902.0,40898.0,0.23947763]
[1646416640026,0.01953599,40902.0,40899.0,0.3]
[1646416640427,0.01953599,40902.0,40899.0,0.361175]
[1646416640628,0.01931274,40902.0,40899.0,0.361175]
[1646416641229,0.01931274,40902.0,40899.0,0.3]
[1646416641877,0.01931274,40902.0,40900.0,0.14490693]
[1646416642073,0.01931274,40902.0,40901.0,0.47750227]
[1646416642476,0.00020384,40903.0,40901.0,0.47738267]
[1646416642673,0.00020384,40903.0,40902.0,0.3]
[1646416643081,0.007,40907.0,40902.0,0.3]
[1646416643472,0.007,40907.0,40904.0,0.31024484]
[1646416643673,0.00116203,40911.0,40905.0,0.5271386]
[1646416644073,0.00116203,40911.0,40906.0,0.14490693]
[1646416644573,0.00019845,40910.0,40906.0,0.14490693]
[1646416645175,0.00116203,40911.0,40909.0,0.14490693]
[1646416645176,4.8e-07,40911.0,40909.0,0.14490693]
[1646416645376,0.05,40914.0,40911.0,0.02445]
[1646416645621,0.0011,40915.0,40914.0,0.366823]
[1646416645820,0.0011,40915.0,40914.0,0.3]
[1646416646820,0.0001,40915.0,40914.0,0.3]
[1646416647823,0.0001,40915.0,40914.0,0.4]
[1646416650169,0.0001,40915.0,40909.0,0.1153]
[1646416650370,0.122433,40915.0,40909.0,0.1153]
[1646416650569,0.122433,40915.0,40905.0,0.14490693]
[1646416650570,0.01348216,40914.0,40905.0,0.44490693]
[1646416650769,0.01348216,40914.0,40905.0,0.3]
[1646416650968,0.01348216,40914.0,40905.0,0.44490693]
[1646416651172,0.01348216,40914.0,40902.0,0.3]
[1646416651173,0.061167,40911.0,40902.0,0.3]
[1646416651370,0.13992324,40907.0,40901.0,0.6317]
[1646416651570,0.13992324,40907.0,40889.0,0.7136]
[1646416651571,0.0642156,40906.0,40889.0,0.7136]
[1646416651771,0.01768461,40905.0,40897.0,0.0002189]
[1646416651969,0.049,40906.0,40897.0,0.0002189]
[1646416651970,0.06340234,40904.0,40897.0,0.0002189]
[1646416652274,0.00460073,40906.0,40897.0,0.0002189]
[1646416652275,0.12237,40902.0,40897.0,0.0002189]
[1646416652470,0.18469178,40902.0,40897.0,0.0002189]
[1646416652874,0.18469178,40902.0,40891.0,0.14490693]
[1646416653126,0.05,40901.0,40897.0,0.00021889]
[1646416653424,0.049,40900.0,40897.0,0.00021889]
[1646416654122,0.049,40900.0,40896.0,0.00021889]
[1646416654324,0.07555961,40898.0,40896.0,0.00021889]
[1646416654522,0.049,40897.0,40896.0,0.00021889]
[1646416655133,0.049,40897.0,40891.0,0.061192]
[1646416655323,0.049,40897.0,40894.0,0.00021203]
[1646416656325,0.049,40897.0,40885.0,0.14490693]
[1646416656528,0.01556836,40893.0,40885.0,0.14490693]
[1646416656772,0.06423981,40892.0,40885.0,0.14490693]
[1646416656973,0.06233937,40891.0,40885.0,0.14490693]
[1646416657174,0.06376684,40890.0,40887.0,0.24303438]
[1646416657578,0.12497084,40890.0,40883.0,0.29734458]
[1646416657773,0.12497084,40890.0,40886.0,0.00021206]
[1646416658773,0.12497084,40890.0,40883.0,0.29734458]
[1646416658974,0.12497084,40890.0,40886.0,0.25616679]
[1646416659974,0.12497084,40890.0,40886.0,0.25595431]
[1646416660282,0.12497084,40890.0,40886.0,0.25616679]
[1646416660527,0.049,40890.0,40889.0,0.14490693]
[1646416660827,0.049,40890.0,40889.0,0.44490693]
[1646416661429,0.049,40890.0,40889.0,0.65468392]
[1646416661631,0.005,40896.0,40889.0,0.65468392]
[1646416661632,0.066188,40896.0,40889.0,0.65468392]
[1646416661827,0.05,40900.0,40889.0,0.70904327]
[1646416662028,0.01549052,40904.0,40891.0,0.122356]
[1646416662233,0.01593145,40903.0,40896.0,0.14490693]
[1646416662427,0.01765865,40906.0,40897.0,0.3]
[1646416662626,0.01765865,40906.0,40899.0,0.21480668]
[1646416663026,0.01765865,40906.0,40897.0,0.3]
[1646416663327,0.01765865,40906.0,40896.0,0.26725393]
[1646416663328,0.061176,40904.0,40896.0,0.26725393]
[1646416663527,0.061176,40904.0,40895.0,0.00019866]
[1646416663728,0.061176,40904.0,40891.0,0.3]
[1646416663928,0.061176,40904.0,40897.0,0.00019866]
[1646416663929,0.01307997,40902.0,40897.0,0.00019866]
[1646416664268,0.049,40901.0,40897.0,0.00019866]
[1646416664468,0.061194,40900.0,40897.0,0.00019866]
[1646416664869,0.061194,40900.0,40890.0,0.6457]
[1646416665071,0.149,40901.0,40890.0,0.6457]
[1646416665072,0.061194,40898.0,40890.0,0.6457]
[1646416665274,0.183578,40898.0,40896.0,0.00019967]
[1646416665475,0.06119,40897.0,40896.0,0.00019967]
[1646416666272,0.06119,40897.0,40894.0,0.00021328]
[1646416666772,0.11019,40897.0,40894.0,0.00021328]
[1646416667171,0.05,40896.0,40894.0,0.00021328]
[1646416667372,0.05,40896.0,40888.0,0.361199]
[1646416667572,0.05,40896.0,40893.0,0.00021328]
[1646416668625,0.05,40896.0,40889.0,0.22039935]
[1646416668826,0.05,40896.0,40892.0,0.00021227]
[1646416669027,0.05,40896.0,40892.0,0.06140527]
[1646416669825,0.05,40896.0,40892.0,0.061193]
[1646416670025,0.05,40896.0,40892.0,0.00021228]
[1646416671028,0.05,40896.0,40889.0,0.22039935]
[1646416671228,0.05,40896.0,40892.0,0.00021228]
[1646416672290,0.05,40896.0,40889.0,0.22039935]